[Event "Titled Tuesday Blitz March 28 Late 2023"]
[White "Costachi, Mihnea"]
[Black "Villiers, Thomas"]
[WhiteFideId "1217518"]
[BlackFideId "427209"]
[WhiteElo "2456"]
[BlackElo "2164"]
[Result "1-0"]
[Round "02"]
[TimeControl "180+2"]
[Date "2023.03.28"]
[WhiteClock "0:02:29"]
[BlackClock "0:01:46"]

1. e4 {[%clk 0:03:00]}  e6 {[%clk 0:02:59]} 2. Qe2 {[%clk 0:03:00]}  c5 {[%clk 0:02:58]} 3. Nc3 {[%clk 0:02:58]}  Nc6 {[%clk 0:02:58]} 4. Nf3 {[%clk 0:02:59]}  Be7 {[%clk 0:02:52]} 5. d3 {[%clk 0:02:58]}  d5 {[%clk 0:02:48]} 6. g3 {[%clk 0:02:58]}  Nf6 {[%clk 0:02:48]} 7. Bg2 {[%clk 0:02:58]}  O-O {[%clk 0:02:48]} 8. O-O {[%clk 0:02:58]}  Qa5 {[%clk 0:02:28]} 9. h4 {[%clk 0:02:52]}  b5 {[%clk 0:02:27]} 10. exd5 {[%clk 0:02:47]}  exd5 {[%clk 0:02:26]} 11. Ne5 {[%clk 0:02:47]}  Nxe5 {[%clk 0:02:25]} 12. Qxe5 {[%clk 0:02:48]}  Be6 {[%clk 0:02:25]} 13. Nxd5 {[%clk 0:02:47]}  Nxd5 {[%clk 0:02:24]} 14. Bxd5 {[%clk 0:02:48]}  Bf6 {[%clk 0:02:23]} 15. Qe4 {[%clk 0:02:47]}  Bxd5 {[%clk 0:02:21]} 16. Qxd5 {[%clk 0:02:48]}  Qc7 {[%clk 0:02:17]} 17. Bf4 {[%clk 0:02:46]}  Qb6 {[%clk 0:02:16]} 18. c3 {[%clk 0:02:47]}  Rad8 {[%clk 0:02:15]} 19. Qf3 {[%clk 0:02:47]}  c4 {[%clk 0:02:14]} 20. d4 {[%clk 0:02:47]}  b4 {[%clk 0:02:14]} 21. Qe2 {[%clk 0:02:38]}  bxc3 {[%clk 0:02:11]} 22. bxc3 {[%clk 0:02:39]}  Qa6 {[%clk 0:02:05]} 23. Rfe1 {[%clk 0:02:38]}  Qa3 {[%clk 0:02:02]} 24. Qxc4 {[%clk 0:02:36]}  Rc8 {[%clk 0:02:02]} 25. Qb3 {[%clk 0:02:36]}  Rxc3 {[%clk 0:01:55]} 26. Qxa3 {[%clk 0:02:35]}  Rxa3 {[%clk 0:01:55]} 27. Bd6 {[%clk 0:02:36]}  Rd3 {[%clk 0:01:52]} 28. Bxf8 {[%clk 0:02:36]}  Kxf8 {[%clk 0:01:53]} 29. Rab1 {[%clk 0:02:32]}  Rd1 {[%clk 0:01:46]} 30. Rb8+ {[%clk 0:02:29]}  Bd8 {[%clk 0:01:46]} 31. Rxd8# {[%clk 0:02:29]} 1-0


[Site "https://www.chess.com"]

[Event "Titled Tuesday Blitz March 28 Late 2023"]
[White "Boyer, Mahel"]
[Black "Martin Barcelo, Carles"]
[WhiteFideId "45102422"]
[BlackFideId "24561444"]
[WhiteElo "2439"]
[BlackElo "2089"]
[Result "1-0"]
[Round "02"]
[TimeControl "180+2"]
[Date "2023.03.28"]
[WhiteClock "0:00:16"]
[BlackClock "0:00:04"]

1. e4 {[%clk 0:02:59]}  e6 {[%clk 0:02:56]} 2. Nc3 {[%clk 0:02:55]}  d5 {[%clk 0:02:56]} 3. d4 {[%clk 0:02:56]}  dxe4 {[%clk 0:02:54]} 4. Nxe4 {[%clk 0:02:30]}  Nd7 {[%clk 0:02:55]} 5. Qe2 {[%clk 0:02:28]}  Ngf6 {[%clk 0:02:54]} 6. Ng5 {[%clk 0:02:23]}  h6 {[%clk 0:02:54]} 7. N5f3 {[%clk 0:02:21]}  c5 {[%clk 0:02:53]} 8. Be3 {[%clk 0:02:18]}  Qa5+ {[%clk 0:02:51]} 9. Bd2 {[%clk 0:02:18]}  Qb6 {[%clk 0:02:47]} 10. O-O-O {[%clk 0:02:18]}  cxd4 {[%clk 0:02:47]} 11. Qb5 {[%clk 0:02:18]}  a6 {[%clk 0:02:42]} 12. Qxb6 {[%clk 0:02:17]}  Nxb6 {[%clk 0:02:43]} 13. Nxd4 {[%clk 0:02:18]}  Bd7 {[%clk 0:02:42]} 14. g3 {[%clk 0:02:14]}  Bc5 {[%clk 0:02:36]} 15. Nge2 {[%clk 0:02:13]}  e5 {[%clk 0:02:25]} 16. Nb3 {[%clk 0:02:11]}  Bxf2 {[%clk 0:02:25]} 17. Bg2 {[%clk 0:02:10]}  Nc4 {[%clk 0:02:06]} 18. Bxb7 {[%clk 0:01:56]}  Ra7 {[%clk 0:02:06]} 19. Bg2 {[%clk 0:01:48]}  Be3 {[%clk 0:01:54]} 20. Nc3 {[%clk 0:01:44]}  Bxd2+ {[%clk 0:01:50]} 21. Nxd2 {[%clk 0:01:29]}  Ne3 {[%clk 0:01:50]} 22. Rde1 {[%clk 0:01:23]}  Nxg2 {[%clk 0:01:47]} 23. Rxe5+ {[%clk 0:01:23]}  Kf8 {[%clk 0:01:47]} 24. Rg1 {[%clk 0:01:18]}  Bc6 {[%clk 0:01:47]} 25. Rc5 {[%clk 0:01:18]}  Bb7 {[%clk 0:01:31]} 26. Nc4 {[%clk 0:00:37]}  Kg8 {[%clk 0:01:27]} 27. Rc7 {[%clk 0:00:34]}  Ne8 {[%clk 0:01:23]} 28. Rd7 {[%clk 0:00:26]}  Nf6 {[%clk 0:01:11]} 29. Rc7 {[%clk 0:00:20]}  Ne8 {[%clk 0:00:48]} 30. Re7 {[%clk 0:00:20]}  Kf8 {[%clk 0:00:37]} 31. Rd7 {[%clk 0:00:19]}  Nf6 {[%clk 0:00:38]} 32. Rd8+ {[%clk 0:00:18]}  Ne8 {[%clk 0:00:38]} 33. Nd6 {[%clk 0:00:15]}  Ke7 {[%clk 0:00:25]} 34. Nxb7 {[%clk 0:00:14]}  Rxb7 {[%clk 0:00:24]} 35. Rd3 {[%clk 0:00:13]}  Nf6 {[%clk 0:00:12]} 36. Rxg2 {[%clk 0:00:13]}  Rc8 {[%clk 0:00:12]} 37. Re2+ {[%clk 0:00:12]}  Kf8 {[%clk 0:00:12]} 38. b3 {[%clk 0:00:13]}  Rbc7 {[%clk 0:00:12]} 39. Kb2 {[%clk 0:00:13]}  Rc5 {[%clk 0:00:12]} 40. Na4 {[%clk 0:00:12]}  Rh5 {[%clk 0:00:10]} 41. c4 {[%clk 0:00:12]}  Ng4 {[%clk 0:00:08]} 42. Rdd2 {[%clk 0:00:12]}  Ne5 {[%clk 0:00:07]} 43. Nb6 {[%clk 0:00:12]}  Rb8 {[%clk 0:00:07]} 44. Rxe5 {[%clk 0:00:13]}  Rxe5 {[%clk 0:00:04]} 45. Nd7+ {[%clk 0:00:14]}  Ke7 {[%clk 0:00:05]} 46. Nxe5 {[%clk 0:00:14]}  Ke6 {[%clk 0:00:04]} 47. Nc6 {[%clk 0:00:13]}  Rb6 {[%clk 0:00:04]} 48. Nd4+ {[%clk 0:00:14]}  Ke5 {[%clk 0:00:04]} 49. Kc3 {[%clk 0:00:15]}  Ke4 {[%clk 0:00:04]} 50. Re2# {[%clk 0:00:16]} 1-0


[Site "https://www.chess.com"]

[Event "Titled Tuesday Blitz March 28 Late 2023"]
[White "Abduzhaparov"]
[Black "Adewumi, Tanitoluwa"]
[BlackFideId "30966396"]
[WhiteElo "2385"]
[BlackElo "2743"]
[Result "0-1"]
[Round "02"]
[TimeControl "180+2"]
[Date "2023.03.28"]
[WhiteClock "0:00:04"]
[BlackClock "0:00:07"]

1. Nf3 {[%clk 0:02:57]}  d5 {[%clk 0:02:57]} 2. c4 {[%clk 0:02:58]}  d4 {[%clk 0:02:55]} 3. e3 {[%clk 0:02:58]}  Nc6 {[%clk 0:02:53]} 4. b4 {[%clk 0:02:58]}  dxe3 {[%clk 0:02:51]} 5. fxe3 {[%clk 0:02:59]}  Nxb4 {[%clk 0:02:51]} 6. d4 {[%clk 0:03:00]}  e5 {[%clk 0:02:47]} 7. d5 {[%clk 0:02:56]}  e4 {[%clk 0:02:43]} 8. Nd4 {[%clk 0:02:44]}  Nf6 {[%clk 0:02:39]} 9. Nc3 {[%clk 0:02:42]}  Bg4 {[%clk 0:02:25]} 10. Qa4+ {[%clk 0:02:27]}  Bd7 {[%clk 0:02:18]} 11. Qd1 {[%clk 0:02:21]}  Bc5 {[%clk 0:02:15]} 12. Nb3 {[%clk 0:02:08]}  Bd6 {[%clk 0:02:09]} 13. Bb2 {[%clk 0:01:58]}  O-O {[%clk 0:02:01]} 14. Be2 {[%clk 0:01:59]}  Ng4 {[%clk 0:01:38]} 15. Bxg4 {[%clk 0:01:47]}  Nd3+ {[%clk 0:01:32]} 16. Qxd3 {[%clk 0:01:28]}  exd3 {[%clk 0:01:28]} 17. Bxd7 {[%clk 0:01:28]}  Qxd7 {[%clk 0:01:24]} 18. O-O-O {[%clk 0:01:28]}  Be5 {[%clk 0:01:15]} 19. Rxd3 {[%clk 0:01:27]}  Qg4 {[%clk 0:01:09]} 20. Nd4 {[%clk 0:00:58]}  Rad8 {[%clk 0:00:22]} 21. g3 {[%clk 0:00:47]}  c5 {[%clk 0:00:20]} 22. dxc6 {[%clk 0:00:39]}  bxc6 {[%clk 0:00:20]} 23. Rhd1 {[%clk 0:00:12]}  c5 {[%clk 0:00:18]} 24. Nc6 {[%clk 0:00:13]}  Rxd3 {[%clk 0:00:16]} 25. Rxd3 {[%clk 0:00:14]}  Bxc3 {[%clk 0:00:12]} 26. Bxc3 {[%clk 0:00:09]}  Qxc4 {[%clk 0:00:10]} 27. Kd2 {[%clk 0:00:06]}  Qxa2+ {[%clk 0:00:08]} 28. Ke1 {[%clk 0:00:05]}  Qa6 {[%clk 0:00:06]} 29. Ne7+ {[%clk 0:00:04]}  Kh8 {[%clk 0:00:07]} 0-1


[Site "https://www.chess.com"]

[Event "Titled Tuesday Blitz March 28 Late 2023"]
[White "Bolanos, Fernando"]
[Black "Escalona Landi, Samid Eduardo"]
[WhiteFideId "3304094"]
[BlackFideId "3937437"]
[WhiteElo "2166"]
[BlackElo "2207"]
[Result "0-1"]
[Round "02"]
[TimeControl "180+2"]
[Date "2023.03.28"]
[WhiteClock "0:00:13"]
[BlackClock "0:00:59"]

1. e4 {[%clk 0:02:54]}  c5 {[%clk 0:02:59]} 2. Nf3 {[%clk 0:02:53]}  d6 {[%clk 0:02:59]} 3. d4 {[%clk 0:02:52]}  cxd4 {[%clk 0:03:00]} 4. Nxd4 {[%clk 0:02:52]}  Nf6 {[%clk 0:03:00]} 5. f3 {[%clk 0:02:51]}  e5 {[%clk 0:02:58]} 6. Nb3 {[%clk 0:02:52]}  Be7 {[%clk 0:02:56]} 7. c4 {[%clk 0:02:49]}  a5 {[%clk 0:02:54]} 8. Be3 {[%clk 0:02:47]}  a4 {[%clk 0:02:53]} 9. N3d2 {[%clk 0:02:47]}  Qa5 {[%clk 0:02:51]} 10. Nc3 {[%clk 0:02:47]}  a3 {[%clk 0:02:50]} 11. Qb3 {[%clk 0:02:39]}  axb2 {[%clk 0:02:43]} 12. Qxb2 {[%clk 0:02:05]}  Nbd7 {[%clk 0:02:39]} 13. Be2 {[%clk 0:01:17]}  O-O {[%clk 0:02:35]} 14. O-O {[%clk 0:01:16]}  Nc5 {[%clk 0:02:26]} 15. Nb3 {[%clk 0:00:33]}  Qb4 {[%clk 0:02:25]} 16. Rab1 {[%clk 0:00:20]}  Na4 {[%clk 0:02:25]} 17. Nxa4 {[%clk 0:00:19]}  Qxa4 {[%clk 0:02:26]} 18. Ra1 {[%clk 0:00:10]}  Be6 {[%clk 0:02:25]} 19. c5 {[%clk 0:00:06]}  d5 {[%clk 0:02:19]} 20. exd5 {[%clk 0:00:03]}  Nxd5 {[%clk 0:02:20]} 21. Bf2 {[%clk 0:00:03]}  Nf4 {[%clk 0:02:18]} 22. Rfe1 {[%clk 0:00:01]}  Bf6 {[%clk 0:02:13]} 23. Bf1 {[%clk 0:00:01]}  e4 {[%clk 0:02:07]} 24. Bd4 {[%clk 0:00:02]}  Bxd4+ {[%clk 0:02:06]} 25. Nxd4 {[%clk 0:00:03]}  exf3 {[%clk 0:02:07]} 26. Nxf3 {[%clk 0:00:03]}  Qa5 {[%clk 0:01:52]} 27. Qb6 {[%clk 0:00:03]}  Bd5 {[%clk 0:01:41]} 28. a4 {[%clk 0:00:02]}  Bxf3 {[%clk 0:01:40]} 29. gxf3 {[%clk 0:00:03]}  Ne6 {[%clk 0:01:40]} 30. Qxa5 {[%clk 0:00:03]}  Rxa5 {[%clk 0:01:41]} 31. Bb5 {[%clk 0:00:03]}  Nxc5 {[%clk 0:01:41]} 32. Re7 {[%clk 0:00:04]}  Raa8 {[%clk 0:01:36]} 33. Rc1 {[%clk 0:00:04]}  Rac8 {[%clk 0:01:35]} 34. Kf2 {[%clk 0:00:02]}  Nd3+ {[%clk 0:01:34]} 35. Bxd3 {[%clk 0:00:02]}  Rxc1 {[%clk 0:01:35]} 36. Rxb7 {[%clk 0:00:03]}  Rd8 {[%clk 0:01:35]} 37. Bb5 {[%clk 0:00:03]}  Rc2+ {[%clk 0:01:32]} 38. Kg3 {[%clk 0:00:04]}  Rc3 {[%clk 0:01:32]} 39. a5 {[%clk 0:00:04]}  g6 {[%clk 0:01:27]} 40. a6 {[%clk 0:00:04]}  Ra3 {[%clk 0:01:27]} 41. Bc4 {[%clk 0:00:05]}  Kg7 {[%clk 0:01:24]} 42. Rxf7+ {[%clk 0:00:05]}  Kh6 {[%clk 0:01:24]} 43. Rf4 {[%clk 0:00:05]}  Ra4 {[%clk 0:01:20]} 44. Bf1 {[%clk 0:00:05]}  Rxf4 {[%clk 0:01:17]} 45. Kxf4 {[%clk 0:00:06]}  Rd1 {[%clk 0:01:17]} 46. Be2 {[%clk 0:00:06]}  Rd2 {[%clk 0:01:17]} 47. Ke3 {[%clk 0:00:07]}  Ra2 {[%clk 0:01:17]} 48. h3 {[%clk 0:00:06]}  Kh5 {[%clk 0:01:15]} 49. Bf1 {[%clk 0:00:06]}  Kh4 {[%clk 0:01:15]} 50. Kf4 {[%clk 0:00:06]}  Rf2 {[%clk 0:01:12]} 51. Bb5 {[%clk 0:00:06]}  Kxh3 {[%clk 0:01:08]} 52. Bc6 {[%clk 0:00:05]}  Ra2 {[%clk 0:01:08]} 53. Bb7 {[%clk 0:00:06]}  Kh4 {[%clk 0:01:06]} 54. Ke3 {[%clk 0:00:05]}  Kg3 {[%clk 0:01:05]} 55. f4 {[%clk 0:00:05]}  Ra3+ {[%clk 0:01:04]} 56. Ke4 {[%clk 0:00:06]}  Ra4+ {[%clk 0:01:05]} 57. Ke5 {[%clk 0:00:06]}  h5 {[%clk 0:01:00]} 58. f5 {[%clk 0:00:06]}  gxf5 {[%clk 0:01:00]} 59. Kxf5 {[%clk 0:00:07]}  h4 {[%clk 0:01:00]} 60. Ke5 {[%clk 0:00:08]}  h3 {[%clk 0:01:00]} 61. Kd6 {[%clk 0:00:09]}  h2 {[%clk 0:00:57]} 62. Kc7 {[%clk 0:00:10]}  Rxa6 {[%clk 0:00:57]} 63. Bxa6 {[%clk 0:00:09]}  h1=Q {[%clk 0:00:57]} 64. Bb7 {[%clk 0:00:10]}  Qh7+ {[%clk 0:00:57]} 65. Kb8 {[%clk 0:00:11]}  Qh8+ {[%clk 0:00:57]} 66. Ka7 {[%clk 0:00:11]}  Qd4+ {[%clk 0:00:57]} 67. Ka8 {[%clk 0:00:12]}  Kf4 {[%clk 0:00:58]} 68. Kb8 {[%clk 0:00:13]}  Ke5 {[%clk 0:00:58]} 69. Kc7 {[%clk 0:00:13]}  Qc5+ {[%clk 0:00:59]} 70. Kd7 {[%clk 0:00:13]}  Qd6+ {[%clk 0:00:58]} 71. Kc8 {[%clk 0:00:14]}  Qb6 {[%clk 0:00:58]} 72. Bf3 {[%clk 0:00:14]}  Kd6 {[%clk 0:00:58]} 73. Bc6 {[%clk 0:00:13]}  Qc7# {[%clk 0:00:59]} 0-1


[Site "https://www.chess.com"]

[Event "Titled Tuesday Blitz March 28 Late 2023"]
[White "Zwirs, Nico"]
[Black "Guzman Moneo, Alberto"]
[WhiteFideId "1036432"]
[BlackFideId "2209616"]
[WhiteElo "2381"]
[BlackElo "2157"]
[Result "0-1"]
[Round "02"]
[TimeControl "180+2"]
[Date "2023.03.28"]
[WhiteClock "0:01:30"]
[BlackClock "0:00:23"]

1. e4 {[%clk 0:03:00]}  c5 {[%clk 0:02:59]} 2. Nf3 {[%clk 0:03:01]}  Nc6 {[%clk 0:02:59]} 3. d4 {[%clk 0:03:01]}  cxd4 {[%clk 0:03:00]} 4. Nxd4 {[%clk 0:03:02]}  g6 {[%clk 0:03:00]} 5. Nc3 {[%clk 0:03:01]}  Bg7 {[%clk 0:03:00]} 6. Be3 {[%clk 0:03:01]}  Nf6 {[%clk 0:03:00]} 7. Nxc6 {[%clk 0:03:01]}  bxc6 {[%clk 0:02:58]} 8. e5 {[%clk 0:03:02]}  Ng8 {[%clk 0:02:59]} 9. Bd4 {[%clk 0:03:01]}  Nh6 {[%clk 0:02:42]} 10. e6 {[%clk 0:03:00]}  f6 {[%clk 0:02:39]} 11. exd7+ {[%clk 0:03:00]}  Qxd7 {[%clk 0:02:36]} 12. Bc4 {[%clk 0:03:00]}  Nf5 {[%clk 0:02:27]} 13. Bc5 {[%clk 0:02:59]}  e6 {[%clk 0:02:13]} 14. Qxd7+ {[%clk 0:02:55]}  Bxd7 {[%clk 0:02:13]} 15. O-O-O {[%clk 0:02:56]}  Bf8 {[%clk 0:02:05]} 16. Ne4 {[%clk 0:02:51]}  Bxc5 {[%clk 0:02:00]} 17. Nxc5 {[%clk 0:02:49]}  Rd8 {[%clk 0:01:49]} 18. Nxd7 {[%clk 0:02:44]}  Rxd7 {[%clk 0:01:48]} 19. Bxe6 {[%clk 0:02:45]}  Rxd1+ {[%clk 0:01:46]} 20. Rxd1 {[%clk 0:02:46]}  Ke7 {[%clk 0:01:39]} 21. Bxf5 {[%clk 0:02:46]}  gxf5 {[%clk 0:01:40]} 22. Rd4 {[%clk 0:02:46]}  Rg8 {[%clk 0:01:38]} 23. g3 {[%clk 0:02:46]}  Ke6 {[%clk 0:01:36]} 24. Kd2 {[%clk 0:02:45]}  Rb8 {[%clk 0:01:29]} 25. b3 {[%clk 0:02:44]}  Rb7 {[%clk 0:01:27]} 26. Ke3 {[%clk 0:02:40]}  Ke5 {[%clk 0:01:23]} 27. Rc4 {[%clk 0:02:36]}  Kd5 {[%clk 0:01:21]} 28. Rf4 {[%clk 0:02:31]}  Ke5 {[%clk 0:01:17]} 29. Ra4 {[%clk 0:02:30]}  Re7 {[%clk 0:01:10]} 30. Ra5+ {[%clk 0:02:25]}  Kd6+ {[%clk 0:01:07]} 31. Kf3 {[%clk 0:02:23]}  Ke6 {[%clk 0:01:01]} 32. Rc5 {[%clk 0:02:19]}  Rc7 {[%clk 0:00:54]} 33. Kf4 {[%clk 0:02:18]}  h6 {[%clk 0:00:49]} 34. Rxf5 {[%clk 0:02:14]}  c5 {[%clk 0:00:49]} 35. c4 {[%clk 0:02:06]}  a5 {[%clk 0:00:47]} 36. Rd5 {[%clk 0:02:04]}  a4 {[%clk 0:00:47]} 37. bxa4 {[%clk 0:02:04]}  Ra7 {[%clk 0:00:45]} 38. Rxc5 {[%clk 0:02:04]}  Rxa4 {[%clk 0:00:45]} 39. Rc6+ {[%clk 0:02:02]}  Kd7 {[%clk 0:00:42]} 40. Rxf6 {[%clk 0:02:01]}  Rxc4+ {[%clk 0:00:41]} 41. Kf3 {[%clk 0:02:02]}  h5 {[%clk 0:00:39]} 42. h4 {[%clk 0:01:57]}  Ra4 {[%clk 0:00:38]} 43. Rf5 {[%clk 0:01:56]}  Rxa2 {[%clk 0:00:38]} 44. Rxh5 {[%clk 0:01:56]}  Ke6 {[%clk 0:00:38]} 45. Rc5 {[%clk 0:01:53]}  Kf6 {[%clk 0:00:37]} 46. g4 {[%clk 0:01:52]}  Kg6 {[%clk 0:00:37]} 47. Kg3 {[%clk 0:01:52]}  Ra1 {[%clk 0:00:36]} 48. Rc6+ {[%clk 0:01:52]}  Kg7 {[%clk 0:00:36]} 49. h5 {[%clk 0:01:53]}  Rh1 {[%clk 0:00:36]} 50. Kf4 {[%clk 0:01:53]}  Rf1 {[%clk 0:00:35]} 51. f3 {[%clk 0:01:53]}  Ra1 {[%clk 0:00:34]} 52. Rc5 {[%clk 0:01:50]}  Kh6 {[%clk 0:00:34]} 53. Rc6+ {[%clk 0:01:48]}  Kh7 {[%clk 0:00:34]} 54. g5 {[%clk 0:01:48]}  Ra4+ {[%clk 0:00:34]} 55. Kg3 {[%clk 0:01:48]}  Rb4 {[%clk 0:00:33]} 56. Rc7+ {[%clk 0:01:48]}  Kh8 {[%clk 0:00:33]} 57. f4 {[%clk 0:01:48]}  Ra4 {[%clk 0:00:33]} 58. g6 {[%clk 0:01:47]}  Ra8 {[%clk 0:00:27]} 59. h6 {[%clk 0:01:47]}  Rb8 {[%clk 0:00:27]} 60. Kg4 {[%clk 0:01:46]}  Ra8 {[%clk 0:00:27]} 61. Kg5 {[%clk 0:01:46]}  Rb8 {[%clk 0:00:27]} 62. Rf7 {[%clk 0:01:43]}  Re8 {[%clk 0:00:25]} 63. g7+ {[%clk 0:01:31]}  Kg8 {[%clk 0:00:23]} 64. Rf8+ {[%clk 0:01:31]}  Rxf8 {[%clk 0:00:24]} 65. h7+ {[%clk 0:01:30]}  Kxg7 {[%clk 0:00:23]} 0-1


[Site "https://www.chess.com"]

[Event "Titled Tuesday Blitz March 28 Late 2023"]
[White "Goltsev, Dmitry"]
[Black "Jorajuria Mendoza, Algol"]
[WhiteFideId "24176710"]
[BlackFideId "5128897"]
[WhiteElo "2336"]
[BlackElo "2076"]
[Result "1-0"]
[Round "02"]
[TimeControl "180+2"]
[Date "2023.03.28"]
[WhiteClock "0:01:12"]
[BlackClock "0:00:08"]

1. e4 {[%clk 0:02:59]}  c5 {[%clk 0:03:00]} 2. Nf3 {[%clk 0:02:59]}  Nc6 {[%clk 0:03:00]} 3. d4 {[%clk 0:02:59]}  cxd4 {[%clk 0:03:01]} 4. Nxd4 {[%clk 0:02:59]}  Nf6 {[%clk 0:03:02]} 5. Nc3 {[%clk 0:02:59]}  e5 {[%clk 0:03:02]} 6. Nf5 {[%clk 0:02:59]}  d5 {[%clk 0:03:03]} 7. exd5 {[%clk 0:02:58]}  Bxf5 {[%clk 0:02:57]} 8. dxc6 {[%clk 0:02:58]}  bxc6 {[%clk 0:02:56]} 9. Bd3 {[%clk 0:02:56]}  Bxd3 {[%clk 0:02:44]} 10. Qxd3 {[%clk 0:02:57]}  Qxd3 {[%clk 0:02:43]} 11. cxd3 {[%clk 0:02:58]}  Rb8 {[%clk 0:02:22]} 12. Ke2 {[%clk 0:02:56]}  Bc5 {[%clk 0:02:19]} 13. b3 {[%clk 0:02:47]}  Bd4 {[%clk 0:02:18]} 14. Bb2 {[%clk 0:02:47]}  O-O {[%clk 0:02:06]} 15. Rac1 {[%clk 0:02:46]}  Rbd8 {[%clk 0:01:53]} 16. Na4 {[%clk 0:02:44]}  e4 {[%clk 0:01:39]} 17. Bxd4 {[%clk 0:02:29]}  Rxd4 {[%clk 0:01:39]} 18. Rhd1 {[%clk 0:02:28]}  Re8 {[%clk 0:01:29]} 19. dxe4 {[%clk 0:02:23]}  Rdxe4+ {[%clk 0:01:30]} 20. Kf1 {[%clk 0:02:22]}  Ng4 {[%clk 0:01:08]} 21. h3 {[%clk 0:02:16]}  Ne5 {[%clk 0:01:01]} 22. Nc5 {[%clk 0:02:11]}  Rf4 {[%clk 0:01:00]} 23. Re1 {[%clk 0:02:04]}  f6 {[%clk 0:00:52]} 24. Rcd1 {[%clk 0:01:45]}  Rb8 {[%clk 0:00:30]} 25. Nd7 {[%clk 0:01:35]}  Rb5 {[%clk 0:00:13]} 26. Nxe5 {[%clk 0:01:30]}  fxe5 {[%clk 0:00:14]} 27. Rd7 {[%clk 0:01:28]}  Rd4 {[%clk 0:00:15]} 28. Rxa7 {[%clk 0:01:22]}  Rd2 {[%clk 0:00:15]} 29. f4 {[%clk 0:01:19]}  Rc5 {[%clk 0:00:07]} 30. Rxe5 {[%clk 0:01:16]}  Rc1+ {[%clk 0:00:07]} 31. Re1 {[%clk 0:01:16]}  Rxe1+ {[%clk 0:00:08]} 32. Kxe1 {[%clk 0:01:17]}  Rxg2 {[%clk 0:00:09]} 33. a4 {[%clk 0:01:12]}  Rg3 {[%clk 0:00:07]} 34. Rb7 {[%clk 0:01:12]}  Rf3 {[%clk 0:00:08]} 35. a5 {[%clk 0:01:12]} 1-0


[Site "https://www.chess.com"]

[Event "Titled Tuesday Blitz March 28 Late 2023"]
[White "Abdyzhapar, Asylbek"]
[Black "Sliwicki, Damian"]
[WhiteFideId "13800337"]
[BlackFideId "1127128"]
[WhiteElo "2323"]
[BlackElo "2030"]
[Result "1-0"]
[Round "02"]
[TimeControl "180+2"]
[Date "2023.03.28"]
[WhiteClock "0:01:09"]
[BlackClock "0:00:02"]

1. d4 {[%clk 0:02:59]}  Nf6 {[%clk 0:02:58]} 2. Bg5 {[%clk 0:02:58]}  d5 {[%clk 0:02:52]} 3. Nd2 {[%clk 0:02:58]}  e6 {[%clk 0:02:48]} 4. e3 {[%clk 0:02:57]}  Be7 {[%clk 0:02:48]} 5. Bd3 {[%clk 0:02:57]}  O-O {[%clk 0:02:48]} 6. Ngf3 {[%clk 0:02:55]}  c5 {[%clk 0:02:47]} 7. c3 {[%clk 0:02:55]}  Nbd7 {[%clk 0:02:46]} 8. Ne5 {[%clk 0:02:55]}  h6 {[%clk 0:02:40]} 9. Bh4 {[%clk 0:02:54]}  Nxe5 {[%clk 0:02:40]} 10. dxe5 {[%clk 0:02:53]}  Nd7 {[%clk 0:02:24]} 11. Bg3 {[%clk 0:02:53]}  b6 {[%clk 0:02:16]} 12. f4 {[%clk 0:02:52]}  Bb7 {[%clk 0:02:05]} 13. O-O {[%clk 0:02:44]}  d4 {[%clk 0:01:55]} 14. e4 {[%clk 0:02:42]}  dxc3 {[%clk 0:01:50]} 15. bxc3 {[%clk 0:02:41]}  Nxe5 {[%clk 0:01:50]} 16. Bc2 {[%clk 0:02:39]}  Ng4 {[%clk 0:01:43]} 17. Qe2 {[%clk 0:02:29]}  c4 {[%clk 0:01:32]} 18. Kh1 {[%clk 0:02:26]}  Bc5 {[%clk 0:01:20]} 19. Nxc4 {[%clk 0:02:15]}  Ba6 {[%clk 0:01:13]} 20. Qxg4 {[%clk 0:02:03]}  Bxc4 {[%clk 0:01:13]} 21. Rfd1 {[%clk 0:02:03]}  Qf6 {[%clk 0:01:12]} 22. e5 {[%clk 0:02:03]}  h5 {[%clk 0:00:32]} 23. Qxh5 {[%clk 0:02:03]}  Qh6 {[%clk 0:00:25]} 24. Qxh6 {[%clk 0:02:02]}  gxh6 {[%clk 0:00:26]} 25. f5 {[%clk 0:02:02]}  Rad8 {[%clk 0:00:23]} 26. Bh4 {[%clk 0:02:02]}  Rd5 {[%clk 0:00:21]} 27. Bf6 {[%clk 0:01:59]}  Be2 {[%clk 0:00:14]} 28. Rxd5 {[%clk 0:01:57]}  exd5 {[%clk 0:00:15]} 29. Re1 {[%clk 0:01:56]}  Bc4 {[%clk 0:00:15]} 30. Bb3 {[%clk 0:01:53]}  b5 {[%clk 0:00:14]} 31. Bxc4 {[%clk 0:01:53]}  bxc4 {[%clk 0:00:15]} 32. Rd1 {[%clk 0:01:52]}  Rb8 {[%clk 0:00:14]} 33. g3 {[%clk 0:01:51]}  d4 {[%clk 0:00:14]} 34. cxd4 {[%clk 0:01:50]}  c3 {[%clk 0:00:15]} 35. Kg2 {[%clk 0:01:28]}  Rb2+ {[%clk 0:00:07]} 36. Kf3 {[%clk 0:01:27]}  c2 {[%clk 0:00:08]} 37. Rc1 {[%clk 0:01:25]}  Bxd4 {[%clk 0:00:08]} 38. Ke4 {[%clk 0:01:26]}  Bg1 {[%clk 0:00:04]} 39. h3 {[%clk 0:01:22]}  Bf2 {[%clk 0:00:04]} 40. g4 {[%clk 0:01:21]}  Rxa2 {[%clk 0:00:04]} 41. Kd3 {[%clk 0:01:19]}  Bg3 {[%clk 0:00:04]} 42. Rxc2 {[%clk 0:01:17]}  Rxc2 {[%clk 0:00:05]} 43. Kxc2 {[%clk 0:01:17]}  Kh7 {[%clk 0:00:05]} 44. Kb3 {[%clk 0:01:13]}  h5 {[%clk 0:00:04]} 45. gxh5 {[%clk 0:01:10]}  Bf2 {[%clk 0:00:03]} 46. e6 {[%clk 0:01:09]}  fxe6 {[%clk 0:00:03]} 47. fxe6 {[%clk 0:01:10]}  Kg8 {[%clk 0:00:03]} 48. e7 {[%clk 0:01:09]}  Kf7 {[%clk 0:00:04]} 49. h6 {[%clk 0:01:10]}  Bd4 {[%clk 0:00:02]} 50. Bxd4 {[%clk 0:01:09]} 1-0


[Site "https://www.chess.com"]

[Event "Titled Tuesday Blitz March 28 Late 2023"]
[White "Gerbelli Neto, Eduardo"]
[Black "Bitoon, Richard"]
[WhiteFideId "2103281"]
[BlackFideId "5201110"]
[WhiteElo "2178"]
[BlackElo "2374"]
[Result "0-1"]
[Round "02"]
[TimeControl "180+2"]
[Date "2023.03.28"]
[WhiteClock "0:00:08"]
[BlackClock "0:01:01"]

1. e4 {[%clk 0:02:52]}  e5 {[%clk 0:03:00]} 2. Nf3 {[%clk 0:02:49]}  Nc6 {[%clk 0:03:01]} 3. d4 {[%clk 0:02:49]}  exd4 {[%clk 0:03:02]} 4. Nxd4 {[%clk 0:02:47]}  Nf6 {[%clk 0:03:03]} 5. Nc3 {[%clk 0:02:44]}  Bc5 {[%clk 0:03:03]} 6. Nxc6 {[%clk 0:02:42]}  bxc6 {[%clk 0:03:04]} 7. Bd3 {[%clk 0:02:38]}  d6 {[%clk 0:03:05]} 8. O-O {[%clk 0:02:37]}  Ng4 {[%clk 0:03:05]} 9. Qf3 {[%clk 0:02:26]}  Ne5 {[%clk 0:03:05]} 10. Qg3 {[%clk 0:02:26]}  Qf6 {[%clk 0:03:05]} 11. Be3 {[%clk 0:02:21]}  h5 {[%clk 0:02:56]} 12. Bxc5 {[%clk 0:02:09]}  h4 {[%clk 0:02:57]} 13. Qe3 {[%clk 0:02:03]}  Ng4 {[%clk 0:02:44]} 14. Qd4 {[%clk 0:01:49]}  Qf4 {[%clk 0:02:44]} 15. g3 {[%clk 0:01:44]}  hxg3 {[%clk 0:02:45]} 16. fxg3 {[%clk 0:01:43]}  Qh6 {[%clk 0:02:13]} 17. h4 {[%clk 0:01:33]}  dxc5 {[%clk 0:02:13]} 18. Qxc5 {[%clk 0:01:27]}  Qe3+ {[%clk 0:02:08]} 19. Qxe3 {[%clk 0:01:26]}  Nxe3 {[%clk 0:02:09]} 20. Rfe1 {[%clk 0:01:18]}  Ng4 {[%clk 0:02:09]} 21. e5 {[%clk 0:01:10]}  Be6 {[%clk 0:02:07]} 22. Be4 {[%clk 0:00:59]}  O-O-O {[%clk 0:01:37]} 23. Bxc6 {[%clk 0:00:55]}  Rd2 {[%clk 0:01:38]} 24. Re2 {[%clk 0:00:55]}  Rxe2 {[%clk 0:01:38]} 25. Nxe2 {[%clk 0:00:56]}  Nxe5 {[%clk 0:01:38]} 26. Bg2 {[%clk 0:00:53]}  Rd8 {[%clk 0:01:37]} 27. c3 {[%clk 0:00:44]}  Rd2 {[%clk 0:01:36]} 28. Nd4 {[%clk 0:00:44]}  Bg4 {[%clk 0:01:22]} 29. b3 {[%clk 0:00:36]}  Rd3 {[%clk 0:01:22]} 30. Re1 {[%clk 0:00:30]}  f6 {[%clk 0:01:21]} 31. Ne2 {[%clk 0:00:18]}  Rd2 {[%clk 0:01:02]} 32. Nf4 {[%clk 0:00:14]}  Rxa2 {[%clk 0:01:01]} 33. Nd5 {[%clk 0:00:09]}  Bf3 {[%clk 0:01:01]} 34. Bf1 {[%clk 0:00:08]}  Bxd5 {[%clk 0:01:01]} 0-1


[Site "https://www.chess.com"]